fUST/lending_fUST_20250929
["ID","MTS","AMOUNT","RATE_DAILY","PERIOD"]
[388414228,1759161051594,-626.29,0.00024318,2]
[388414229,1759161051603,-151.0,0.00024318,7]
[388414230,1759161051612,-1060.0,0.00024318,2]
[388414231,1759161051621,-260.590659,0.00024318,7]
[388414232,1759161051631,-677.98,0.00024318,2]
[388414233,1759161051640,-480.0,0.00024318,2]
[388414234,1759161051653,-623.258742,0.00024318,7]
[388414235,1759161051662,-594.241342,0.00024318,7]
[388414236,1759161051671,-2967.25,0.00024318,2]
[388414237,1759161051680,-623.258742,0.00024318,7]
[388414238,1759161051688,-502.23,0.00024318,2]
[388414239,1759161051698,-623.258742,0.00024318,7]
[388414240,1759161051707,-594.241342,0.00024318,7]
[388414241,1759161051716,-623.258742,0.00024318,7]
[388414242,1759161051724,-594.241342,0.00024318,7]
[388414243,1759161051734,-594.241342,0.00024318,7]
[388414244,1759161051742,-884.05,0.00024318,2]
[388414245,1759161051751,-151.0,0.00024318,7]
[388414246,1759161051760,-1931.899091,0.00024318,7]
[388414247,1759161051769,-151.0,0.00024318,7]
[388414248,1759161051778,-1931.899091,0.00024318,7]
[388414249,1759161051787,-1931.899091,0.00024318,7]
[388414250,1759161051804,-1931.899091,0.00024318,7]
[388414251,1759161051820,-151.0,0.00024318,7]
[388414252,1759161051834,-830.83,0.00024318,2]
[388414253,1759161051848,-151.0,0.00024318,7]
[388414254,1759161051861,-731.1,0.00024318,2]
[388414255,1759161051876,-151.0,0.00024318,7]
[388414256,1759161051890,-150000.0,0.00024318,2]
[388414257,1759161051904,-480.0,0.00024319,2]
[388414258,1759161051919,-480.0,0.00024319,2]
[388414259,1759161051933,-151.0,0.00024319,7]
[388414260,1759161051946,-151.0,0.00024319,7]
[388414261,1759161051958,-151.0,0.00024319,7]
[388414262,1759161051973,-205.71134,0.00024319,7]
[388414263,1759161051987,-205.71134,0.00024319,7]
[388414264,1759161051998,-151.0,0.00024319,7]
[388414265,1759161052013,-205.71134,0.00024319,7]
[388414266,1759161052025,-151.0,0.00024319,7]
[388414267,1759161052039,-205.71134,0.00024319,7]
[388414268,1759161052054,-151.0,0.00024319,7]
[388414269,1759161052072,-151.0,0.00024319,7]
[388414270,1759161052086,-151.0,0.00024319,7]
[388414271,1759161052101,-252.157268,0.00024319,7]
[388414272,1759161052111,-151.0,0.00024319,7]
[388414273,1759161052122,-151.0,0.00024319,7]
[388414274,1759161052136,-151.0,0.00024319,7]
[388414275,1759161052151,-1544.48,0.00024319,2]
[388414276,1759161052164,-480.0,0.0002432,2]
[388414277,1759161052175,-678.77,0.0002432,2]
[388414278,1759161052188,-546.42,0.0002432,2]
[388414279,1759161052201,-480.0,0.0002432,2]
[388414280,1759161052211,-480.0,0.0002432,2]
[388414281,1759161052223,-480.0,0.0002432,2]
[388414282,1759161052235,-500.0,0.00024321,2]
[388414283,1759161052246,-151.0,0.00024334,2]
[388414284,1759161052260,-500.0,0.00024334,2]
[388414285,1759161052271,-151.0,0.00024334,2]
[388414286,1759161052284,-500.0,0.00024334,2]
[388414287,1759161052295,-151.0,0.00024334,2]
[388414288,1759161052307,-151.0,0.00024334,2]
[388414289,1759161052319,-195.75892033,0.00024334,2]
[388414290,1759161052331,-183.98575648,0.00024334,2]
[388414291,1759161052343,-500.0,0.00024334,2]
[388414292,1759161052355,-151.0,0.00024334,2]
[388414293,1759161052367,-500.0,0.00024334,2]
[388414294,1759161052379,-500.0,0.00024334,2]
[388414295,1759161052391,-151.0,0.00024334,2]
[388414296,1759161052403,-151.0,0.00024334,2]
[388414297,1759161052414,-151.0,0.00024334,2]
[388414298,1759161052426,-500.0,0.00024334,2]
[388414299,1759161052438,-1350.0,0.00024334,2]
[388414300,1759161052450,-151.0,0.00024334,2]
[388414301,1759161052462,-151.0,0.00024334,2]
[388414302,1759161052474,-151.0,0.00024334,2]
[388414303,1759161052486,-151.0,0.00024334,2]
[388414304,1759161052498,-500.0,0.00024334,2]
[388414305,1759161052511,-188.92018006,0.00024334,2]
[388414306,1759161052525,-153.78688761,0.00024334,2]
[388414307,1759161052536,-158.33962896,0.00024334,2]
[388414308,1759161052548,-151.0,0.00024334,2]
[388414309,1759161052560,-252.53966276,0.00024334,2]
[388414310,1759161052572,-500.0,0.00024334,2]
[388414311,1759161052584,-500.0,0.00024334,2]
[388414312,1759161052596,-500.0,0.00024334,2]
[388414313,1759161052608,-500.0,0.00024334,2]
[388414314,1759161052620,-500.0,0.00024334,2]
[388414315,1759161052632,-666.94197745,0.00024339,5]
[388414316,1759161052644,-220.95344043,0.00024368,2]
[388414317,1759161052655,-6409.18,0.000244,2]
[388414318,1759161052667,-151.0,0.000244,7]
[388414319,1759161052679,-769.502463,0.000244,7]
[388414320,1759161052690,-151.0,0.000244,7]
[388414321,1759161052701,-769.502463,0.000244,7]
[388414322,1759161052712,-151.0,0.000244,7]
[388414323,1759161052724,-769.502463,0.000244,7]
[388414324,1759161052735,-236.050968,0.000244,7]
[388414325,1759161052747,-769.502463,0.000244,7]
[388414326,1759161052760,-236.050968,0.000244,7]
[388414327,1759161052771,-236.050968,0.000244,7]
[388414328,1759161052784,-236.050968,0.000244,7]
[388414329,1759161052795,-746.562052,0.000244,7]
[388414330,1759161052806,-746.562052,0.000244,7]
[388414331,1759161052818,-746.562052,0.000244,7]
[388414332,1759161052829,-746.562052,0.000244,7]
[388414333,1759161052840,-151.0,0.000244,7]
[388414334,1759161052852,-151.0,0.000244,7]
[388414335,1759161052863,-151.0,0.000244,7]
[388414336,1759161052876,-151.0,0.000244,7]
[388414337,1759161052888,-269.133724,0.000244,7]
[388414338,1759161052899,-151.0,0.000244,7]
[388414339,1759161052911,-151.0,0.000244,7]
[388414340,1759161052922,-151.0,0.000244,7]
[388414341,1759161052935,-151.0,0.000244,7]
[388414342,1759161052947,-151.631372,0.000244,7]
[388414343,1759161052959,-151.0,0.000244,7]
[388414344,1759161052971,-151.631372,0.000244,7]
[388414345,1759161052982,-151.631372,0.000244,7]
[388414346,1759161052995,-151.631372,0.000244,7]
[388414347,1759161053007,-151.0,0.000244,7]
[388414348,1759161053020,-151.0,0.000244,7]
[388414349,1759161053032,-151.0,0.000244,7]
[388414350,1759161053045,-151.0,0.000244,7]
[388414351,1759161053060,-151.0,0.000244,7]
[388414352,1759161053073,-212.054105,0.000244,7]
[388414353,1759161053086,-1572.27219052,0.00024411,2]
[388414354,1759161053099,-480.0,0.0002442,2]
[388414355,1759161053112,-480.0,0.0002442,2]
[388414356,1759161053123,-604.03,0.0002442,2]
[388414357,1759161053136,-480.0,0.0002442,2]
[388414358,1759161053149,-480.0,0.0002442,2]
[388414359,1759161053161,-480.0,0.0002442,2]
[388414360,1759161053173,-480.0,0.0002442,2]
[388414361,1759161053185,-480.0,0.0002442,2]
[388414362,1759161053197,-480.0,0.0002442,2]
[388414363,1759161053209,-624.3,0.0002442,2]
[388414364,1759161053221,-644.65,0.0002442,2]
[388414365,1759161053233,-480.0,0.0002442,2]
[388414366,1759161053246,-480.0,0.0002442,2]
[388414367,1759161053259,-480.0,0.0002442,2]
[388414368,1759161053272,-797.26,0.0002442,2]
[388414369,1759161053284,-655.78,0.0002442,2]
[388414370,1759161053297,-151.0,0.0002442,7]
[388414371,1759161053309,-151.0,0.0002442,7]
[388414372,1759161053322,-983.15,0.0002442,2]
[388414373,1759161053335,-151.0,0.0002442,7]
[388414374,1759161053347,-299.127862,0.0002442,7]
[388414375,1759161053356,-1202.69,0.0002442,2]
[388414376,1759161053366,-480.0,0.0002442,2]
[388414377,1759161053375,-480.0,0.0002442,2]
[388414378,1759161053385,-151.0,0.0002442,7]
[388414379,1759161053395,-151.0,0.0002442,7]
[388414380,1759161053405,-728.55,0.0002442,2]
[388414381,1759161053414,-258.615372,0.0002442,7]
[388414382,1759161053423,-703.92,0.0002442,2]
[388414383,1759161053432,-185.268727,0.0002442,7]
[388414384,1759161053441,-185.268727,0.0002442,7]
[388414385,1759161053451,-185.268727,0.0002442,7]
[388414386,1759161053460,-480.0,0.0002442,2]
[388414387,1759161053469,-185.268727,0.0002442,7]
[388414388,1759161053479,-480.0,0.0002442,2]
[388414389,1759161053748,-151.0,0.0002442,7]
[388414390,1759161053773,-480.0,0.0002442,2]
[388414391,1759161053786,-151.0,0.0002442,7]
[388414392,1759161053795,-151.0,0.0002442,7]
[388414393,1759161053804,-480.0,0.0002442,2]
[388414394,1759161053814,-2054.92,0.0002442,2]
[388414395,1759161053823,-480.0,0.0002442,2]
[388414396,1759161053832,-480.0,0.0002442,2]
[388414397,1759161053841,-480.0,0.0002442,2]
[388414398,1759161053851,-480.0,0.0002442,2]
[388414399,1759161053860,-156.18913045,0.0002442,2]
[388414400,1759161053869,-1439.94,0.0002442,2]
[388414401,1759161053878,-480.0,0.0002442,2]
[388414402,1759161053887,-480.0,0.0002442,2]
[388414403,1759161053896,-1143.63,0.0002442,2]
[388414404,1759161053905,-480.0,0.0002442,2]
[388414405,1759161053914,-200.0,0.0002442,2]
[388414406,1759161053924,-536.57,0.0002442,2]
[388414407,1759161053932,-605.61,0.0002442,2]
[388414408,1759161053942,-480.0,0.0002442,2]
[388414409,1759161053950,-500.0,0.0002442,2]
[388414410,1759161053960,-480.0,0.0002442,2]
[388414411,1759161053969,-480.0,0.0002442,2]
[388414412,1759161053979,-480.0,0.0002442,2]
[388414413,1759161053988,-480.0,0.0002442,2]
[388414414,1759161053997,-480.0,0.0002442,2]
[388414415,1759161054007,-649.35,0.0002442,2]
[388414416,1759161054016,-480.0,0.0002442,2]
[388414417,1759161054025,-862.61,0.0002442,2]
[388414418,1759161054034,-480.0,0.0002442,2]
[388414419,1759161054043,-480.0,0.0002442,2]
[388414420,1759161054054,-640.96,0.0002442,2]
[388414421,1759161054064,-480.0,0.0002442,2]
[388414422,1759161054074,-480.0,0.0002442,2]
[388414423,1759161054084,-480.0,0.0002442,2]
[388414424,1759161054095,-2371.72,0.0002442,2]
[388414425,1759161054104,-631.12,0.0002442,2]
[388414426,1759161054113,-480.0,0.0002442,2]
[388414427,1759161054122,-1038.88,0.0002442,2]
[388414428,1759161054134,-480.0,0.0002442,2]
[388414429,1759161054143,-1604.21,0.0002442,2]
[388414430,1759161054153,-480.0,0.0002442,2]
[388414431,1759161054162,-724.44,0.0002442,2]
[388414432,1759161054172,-651.54,0.0002442,2]
[388414433,1759161054182,-564.36,0.0002442,2]
[388414434,1759161054191,-480.0,0.0002442,2]
[388414435,1759161054200,-814.77,0.0002442,2]
[388414436,1759161054209,-641.1,0.0002442,2]
[388414437,1759161054218,-500.0,0.0002442,2]
[388414438,1759161054228,-601.27,0.0002442,2]
[388414439,1759161054237,-480.0,0.0002442,2]
[388414440,1759161054246,-480.0,0.0002442,2]
[388414441,1759161054257,-760.04,0.0002442,2]
[388414442,1759161054266,-480.0,0.0002442,2]
[388414443,1759161054276,-480.0,0.0002442,2]
[388414444,1759161054285,-2257.54,0.0002442,2]
[388414445,1759161054294,-480.0,0.0002442,2]
[388414446,1759161054304,-486.28,0.0002442,2]
[388414447,1759161054312,-480.0,0.0002442,2]
[388414448,1759161054322,-480.0,0.0002442,2]
[388414449,1759161054331,-498.3,0.0002442,2]
[388414450,1759161054340,-647.24,0.0002442,2]
[388414451,1759161054348,-480.0,0.0002442,2]
[388414452,1759161054358,-505.97,0.0002442,2]
[388414453,1759161054368,-480.0,0.0002442,2]
[388414454,1759161054377,-633.37,0.0002442,2]
[388414455,1759161054385,-730.5,0.0002442,2]
[388414456,1759161054394,-664.36,0.0002442,2]
[388414457,1759161054403,-480.0,0.0002442,2]
[388414458,1759161054412,-643.61,0.0002442,2]
[388414459,1759161054421,-480.0,0.0002442,2]
[388414460,1759161054430,-708.35,0.0002442,2]
[388414461,1759161054439,-480.0,0.0002442,2]
[388414462,1759161054448,-480.0,0.0002442,2]
[388414463,1759161054457,-480.0,0.0002442,2]
[388414464,1759161054466,-480.0,0.0002442,2]
[388414465,1759161054474,-480.0,0.0002442,2]
[388414466,1759161054483,-480.0,0.0002442,2]
[388414467,1759161054492,-480.0,0.0002442,2]
[388414468,1759161054501,-693.38,0.0002442,2]
[388414469,1759161054511,-288.60232505,0.0002442,2]
[388414470,1759161054520,-640.7,0.0002442,2]
[388414471,1759161054529,-686.56,0.0002442,2]
[388414472,1759161054539,-1345.2,0.0002442,2]
[388414473,1759161054548,-480.0,0.0002442,2]
[388414474,1759161054557,-655.86,0.0002442,2]
[388414475,1759161054566,-635.45,0.0002442,2]
[388414476,1759161054575,-707.71,0.0002442,2]
[388414477,1759161054585,-480.0,0.0002442,2]
[388414478,1759161054594,-480.0,0.0002442,2]
[388414479,1759161054604,-480.0,0.0002442,2]
[388414480,1759161054613,-619.68,0.0002442,2]
[388414481,1759161054622,-480.0,0.0002442,2]
[388414482,1759161054631,-480.0,0.0002442,2]
[388414483,1759161054640,-1613.5,0.0002442,2]
[388414484,1759161054649,-511.09,0.0002442,2]
[388414485,1759161054658,-480.0,0.0002442,2]
[388414486,1759161054667,-480.0,0.0002442,2]
[388414487,1759161054676,-480.0,0.0002442,2]
[388414488,1759161054685,-480.0,0.0002442,2]
[388414489,1759161054694,-1084.25,0.0002442,2]
[388414490,1759161054703,-805.68,0.0002442,2]
[388414491,1759161054711,-480.0,0.0002442,2]
[388414492,1759161054720,-480.0,0.0002442,2]
[388414493,1759161054729,-532.56,0.0002442,2]
[388414494,1759161054738,-2009.29,0.0002442,2]
[388414495,1759161054747,-941.55,0.0002442,2]
[388414496,1759161054756,-702.93,0.0002442,2]
[388414497,1759161054765,-605.69,0.0002442,2]
[388414498,1759161054774,-490.09,0.0002442,2]
[388414499,1759161054782,-1317.39,0.0002442,2]
[388414500,1759161054791,-568.24,0.0002442,2]
[388414501,1759161054799,-607.45,0.0002442,2]
[388414502,1759161054809,-480.0,0.0002442,2]
[388414503,1759161054818,-480.0,0.0002442,2]
[388414504,1759161054828,-480.0,0.0002442,2]
[388414505,1759161054837,-480.0,0.0002442,2]
[388414506,1759161054846,-249.550516,0.0002442,7]
[388414507,1759161054856,-480.0,0.0002442,2]
[388414508,1759161054865,-482.22,0.0002442,2]
[388414509,1759161054875,-515.66,0.0002442,2]
[388414510,1759161054885,-356.249965,0.0002442,7]
[388414511,1759161054895,-356.249965,0.0002442,7]
[388414512,1759161054906,-356.249965,0.0002442,7]
[388414513,1759161054915,-356.249965,0.0002442,7]
[388414514,1759161054924,-541.16,0.0002442,2]
[388414515,1759161054933,-661.76,0.0002442,2]
[388414516,1759161054943,-314.876435,0.0002442,7]
[388414517,1759161054952,-314.876435,0.0002442,7]
[388414518,1759161054961,-314.876435,0.0002442,7]
[388414519,1759161054971,-480.0,0.0002442,2]
[388414520,1759161054980,-151.0,0.0002442,7]
[388414521,1759161054990,-314.876435,0.0002442,7]
[388414522,1759161054999,-151.0,0.0002442,7]
[388414523,1759161055010,-151.0,0.0002442,7]
[388414524,1759161055019,-3773.912547,0.0002442,7]
[388414525,1759161055028,-151.0,0.0002442,7]
[388414526,1759161055037,-3773.912547,0.0002442,7]
[388414527,1759161055046,-523.99,0.0002442,2]
[388414528,1759161055056,-3773.912547,0.0002442,7]
[388414529,1759161055070,-3773.912547,0.0002442,7]
[388414530,1759161055079,-151.0,0.0002442,7]
[388414531,1759161055089,-544.08,0.0002442,2]
[388414532,1759161055098,-151.0,0.0002442,7]
[388414533,1759161055109,-480.0,0.0002442,2]
[388414534,1759161055118,-480.0,0.0002442,2]
[388414535,1759161055128,-480.0,0.0002442,2]
[388414536,1759161055138,-678.77,0.0002442,2]
[388414537,1759161055147,-527.94,0.0002442,2]
[388414538,1759161055156,-480.0,0.0002442,2]
[388414539,1759161055165,-480.0,0.0002442,2]
[388414540,1759161055174,-480.0,0.0002442,2]
[388414541,1759161055183,-480.0,0.0002442,2]
[388414542,1759161055192,-628.98,0.0002442,2]
[388414543,1759161055202,-480.0,0.0002442,2]
[388414544,1759161055211,-1082.67825345,0.00024421,2]
[388414545,1759161055220,-1000.0,0.00024421,2]
[388414546,1759161055229,-1000.0,0.00024421,2]
[388414547,1759161055238,-1000.0,0.00024421,2]
[388414548,1759161055247,-1000.0,0.00024421,2]
[388414549,1759161055257,-1000.0,0.00024421,2]
[388414550,1759161055266,-1000.0,0.00024421,2]
[388414551,1759161055275,-1000.0,0.00024421,2]
[388414552,1759161055284,-1000.0,0.00024421,2]
[388414553,1759161055293,-1000.0,0.00024421,2]
[388414554,1759161055303,-1000.0,0.00024421,2]
[388414555,1759161055312,-569.29357218,0.00024421,2]
[388414556,1759161055321,-1000.0,0.00024421,2]
[388414557,1759161055330,-1000.0,0.00024421,2]
[388414558,1759161055339,-1000.0,0.00024421,2]
[388414559,1759161055348,-1000.0,0.00024421,2]
[388414560,1759161055357,-1000.0,0.00024421,2]
[388414561,1759161055366,-1000.0,0.00024421,2]
[388414562,1759161055375,-1000.0,0.00024421,2]
[388414563,1759161055384,-1000.0,0.00024421,2]
[388414564,1759161055393,-1000.0,0.00024421,2]
[388414565,1759161055402,-1000.0,0.00024421,2]
[388414566,1759161055411,-1000.0,0.00024421,2]
[388414567,1759161055420,-1000.0,0.00024421,2]
[388414568,1759161055428,-1000.0,0.00024421,2]
[388414569,1759161055437,-1000.0,0.00024421,2]
[388414570,1759161055446,-1057.45315853,0.00024421,2]
[388414571,1759161055455,-1000.0,0.00024421,2]
[388414572,1759161055464,-928.12961212,0.00024421,2]
[388414573,1759161055474,-1000.0,0.00024421,2]
[388414574,1759161055484,-1000.0,0.00024421,2]
[388414575,1759161055494,-1000.0,0.00024421,2]
[388414576,1759161055505,-453.9679715,0.00024421,2]
[388414577,1759161055515,-1000.0,0.00024421,2]
[388414578,1759161055523,-1000.0,0.00024421,2]
[388414579,1759161055533,-1000.0,0.00024421,2]
[388414580,1759161055542,-151.0,0.00024421,7]
[388414581,1759161055551,-151.0,0.00024421,7]
[388414582,1759161055560,-151.0,0.00024421,7]
[388414583,1759161055569,-151.0,0.00024421,7]
[388414584,1759161055578,-151.0,0.00024421,7]
[388414585,1759161055588,-151.0,0.00024421,7]
[388414586,1759161055597,-179.070587,0.00024421,7]
[388414587,1759161055606,-179.070587,0.00024421,7]
[388414588,1759161055615,-179.070587,0.00024421,7]
[388414589,1759161055624,-179.070587,0.00024421,7]
[388414590,1759161055633,-151.0,0.00024421,7]
[388414591,1759161055643,-151.0,0.00024421,7]
[388414592,1759161055657,-151.0,0.00024421,7]
[388414593,1759161055666,-451.895346,0.00024421,7]
[388414594,1759161055676,-151.0,0.00024421,7]
[388414595,1759161055686,-451.895346,0.00024421,7]
[388414596,1759161055696,-451.895346,0.00024421,7]
[388414597,1759161055705,-451.895346,0.00024421,7]
[388414598,1759161055715,-153.807745,0.00024421,7]
[388414599,1759161055724,-153.807745,0.00024421,7]
[388414600,1759161055733,-153.807745,0.00024421,7]
[388414601,1759161055742,-153.807745,0.00024421,7]
[388414602,1759161055755,-151.0,0.00024421,7]
[388414603,1759161055765,-151.0,0.00024421,7]
[388414604,1759161055776,-151.0,0.00024421,7]
[388414605,1759161055786,-500.0,0.00024473,2]
[388414606,1759161055797,-500.0,0.00024473,2]
[388414607,1759161055809,-500.0,0.00024473,2]
[388414608,1759161055820,-500.0,0.00024473,2]
[388414609,1759161055829,-500.0,0.00024473,2]
[388414610,1759161055839,-500.0,0.00024473,2]
[388414611,1759161055848,-500.0,0.00024473,2]
[388414612,1759161055858,-500.0,0.00024473,2]
[388414613,1759161055867,-500.0,0.00024473,2]
[388414614,1759161055876,-500.0,0.00024473,2]
[388414615,1759161055886,-487.84564095,0.00024473,2]
[388414616,1759161055895,-500.0,0.00024473,2]
[388414617,1759161055904,-501.54788201,0.00024473,2]
[388414618,1759161055913,-159.65849985,0.00024473,2]
[388414619,1759161055922,-507.40284838,0.00024473,2]
[388414620,1759161055931,-500.0,0.00024473,2]
[388414621,1759161055940,-500.0,0.00024473,2]
[388414622,1759161055949,-500.0,0.00024473,2]
[388414623,1759161055959,-400.0,0.00024473,2]
[388414624,1759161055969,-500.0,0.00024473,2]
[388414625,1759161055978,-500.0,0.00024473,2]
[388414626,1759161055987,-500.0,0.00024473,2]
[388414627,1759161055996,-500.0,0.00024473,2]
[388414628,1759161056008,-500.0,0.00024473,2]
[388414629,1759161056017,-500.0,0.00024473,2]
[388414630,1759161056027,-500.0,0.00024473,2]
[388414631,1759161056036,-504.8061325,0.00024473,2]
[388414632,1759161056045,-500.0,0.00024473,2]
[388414633,1759161056054,-500.0,0.00024473,2]
[388414634,1759161056066,-500.0,0.00024473,2]
[388414635,1759161056076,-500.0,0.00024473,2]
[388414636,1759161056085,-500.0,0.00024473,2]
[388414637,1759161056096,-500.0,0.00024473,2]
[388414638,1759161056105,-501.78461422,0.00024473,2]
[388414639,1759161056114,-500.0,0.00024473,2]
[388414640,1759161056123,-214.80008872,0.00024473,2]
[388414641,1759161056132,-500.0,0.00024473,2]
[388414642,1759161056141,-500.0,0.00024473,2]
[388414643,1759161056152,-500.0,0.00024473,2]
[388414644,1759161056161,-500.0,0.00024473,2]
[388414645,1759161056171,-500.0,0.00024473,2]
[388414646,1759161056179,-500.0,0.00024473,2]
[388414647,1759161056189,-500.0,0.00024473,2]
[388414648,1759161056198,-500.0,0.00024473,2]
[388414649,1759161056207,-500.0,0.00024473,2]
[388414650,1759161056216,-151.0,0.00024473,7]
[388414651,1759161056225,-151.0,0.00024473,7]
[388414652,1759161056234,-151.0,0.00024473,7]
[388414653,1759161056243,-623.258742,0.00024473,7]
[388414654,1759161056256,-594.241342,0.00024473,7]
[388414655,1759161056265,-623.258742,0.00024473,7]
[388414656,1759161056274,-623.258742,0.00024473,7]
[388414657,1759161056283,-594.241342,0.00024473,7]
[388414658,1759161056292,-623.258742,0.00024473,7]
[388414659,1759161056302,-594.241342,0.00024473,7]
[388414660,1759161056311,-594.241342,0.00024473,7]
[388414661,1759161056320,-151.0,0.00024473,7]
[388414662,1759161056331,-1931.899091,0.00024473,7]
[388414663,1759161056339,-281.341482,0.00024473,7]
[388414664,1759161056348,-1931.899091,0.00024473,7]
[388414665,1759161056357,-1931.899091,0.00024473,7]
[388414666,1759161056366,-1931.899091,0.00024473,7]
[388414667,1759161056375,-151.0,0.00024473,7]
[388414668,1759161056385,-155.376843,0.00024473,7]
[388414669,1759161056395,-151.0,0.00024473,7]
[388414670,1759161056404,-934.0,0.00024485,2]
[388414671,1759161056413,-568.7,0.0002449,2]
[388414672,1759161056422,-840.01,0.0002449,2]
[388414673,1759161056432,-1205.11,0.0002449,2]
[388414674,1759161056441,-2489.6,0.0002449,2]
[388414675,1759161056450,-480.0,0.0002449,2]
[388414676,1759161056460,-5185.97,0.0002449,2]
[388414677,1759161056469,-460.25663718,0.0002449,2]
[388414678,1759161056478,-874.96,0.0002449,2]
[388414679,1759161056487,-819.07,0.0002449,2]
[388414680,1759161056496,-480.0,0.0002449,2]
[388414681,1759161056508,-151.0,0.000245,6]
[388414682,1759161056517,-151.0,0.000245,10]
[388414683,1759161056527,-664.1886965,0.000245,2]
[388414684,1759161056536,-1100.0,0.000245,5]
[388414685,1759161056545,-180.0,0.00024501,2]
[388414686,1759161056555,-500.0,0.00024519,2]
[388414687,1759161056564,-151.0,0.00024524,2]
[388414688,1759161056572,-480.0,0.00024537,2]
[388414689,1759161056581,-480.0,0.00024537,2]
[388414690,1759161056590,-480.0,0.00024537,2]
[388414691,1759161056600,-2525.0,0.00024537,2]
[388414692,1759161056609,-16034.29256042,0.0002455,2]
[388414693,1759161056618,-590.0,0.00024575,2]
[388414694,1759161056628,-480.0,0.00024586,2]
[388414695,1759161056637,-480.0,0.00024586,2]
[388414696,1759161056647,-375.27895063,0.00024586,2]
[388414697,1759161056656,-763.67,0.00024586,2]
[388414698,1759161056665,-480.0,0.00024586,2]
[388414699,1759161056674,-4739.14,0.00024586,2]
[388414700,1759161056683,-549.65,0.00024586,2]
[388414701,1759161056692,-480.0,0.00024586,2]
[388414702,1759161056702,-1776.01,0.00024586,2]
[388414703,1759161056711,-480.0,0.00024586,2]
[388414704,1759161056721,-480.0,0.00024586,2]
[388414705,1759161056738,-522.2,0.00024588,2]
[388414706,1759161056757,-480.0,0.00024588,2]
[388414707,1759161056779,-480.0,0.00024588,2]
[388414708,1759161056792,-480.0,0.00024588,2]
[388414709,1759161056802,-434.949968,0.00024588,2]
[388414710,1759161056812,-599.11,0.00024588,2]
[388414711,1759161056822,-480.0,0.00024588,2]
[388414712,1759161056832,-1118.42,0.00024588,2]
[388414713,1759161056842,-523.31,0.00024588,2]
[388414714,1759161056853,-492.97,0.00024588,2]
[388414715,1759161056862,-496.98,0.00024588,2]
[388414716,1759161056872,-480.0,0.00024588,2]
[388414717,1759161056882,-667.01,0.00024588,2]
[388414718,1759161056891,-480.0,0.00024588,2]
[388414719,1759161057043,-480.0,0.00024588,2]
[388414720,1759161057065,-480.0,0.00024588,2]
[388414721,1759161057076,-480.0,0.00024588,2]
[388414722,1759161057085,-480.0,0.00024588,2]
[388414723,1759161057094,-480.0,0.00024588,2]
[388414724,1759161057106,-699.64,0.00024588,2]
[388414725,1759161057115,-679.64,0.00024588,2]
[388414726,1759161057124,-480.0,0.00024588,2]
[388414727,1759161057133,-328.33,0.00024588,2]